[Event "*** Titled Tuesday Blitz"]
[Site "Chess.com"]
[Date "2019.11.05"]
[Round "9"]
[White "nihalsarin"]
[Black "1995Tiger"]
[Result "1/2-1/2"]
[WhiteElo "2963"]
[BlackElo "2171"]
[TimeControl "180+2"]
[EndTime "15:08:56 PST"]
[Termination "Game drawn by repetition"]

1. e4 {[%clk 0:03:01.9]} 1... c5 {[%clk 0:03:00.9]} 2. Nc3 {[%clk 0:03:03.5]}
2... Nc6 {[%clk 0:03:02]} 3. Nf3 {[%clk 0:03:04.3]} 3... g6 {[%clk 0:03:01.6]}
4. d4 {[%clk 0:03:04.1]} 4... cxd4 {[%clk 0:03:03.5]} 5. Nxd4 {[%clk 0:03:06]}
5... Bg7 {[%clk 0:03:04.8]} 6. Be3 {[%clk 0:03:07.6]} 6... Nf6 {[%clk
0:03:05.2]} 7. Bc4 {[%clk 0:03:08.9]} 7... Qa5 {[%clk 0:03:06.2]} 8. O-O {[%clk
0:03:09]} 8... d6 {[%clk 0:03:07.3]} 9. Bb3 {[%clk 0:03:10.3]} 9... O-O {[%clk
0:03:05.8]} 10. h3 {[%clk 0:03:11.3]} 10... Bd7 {[%clk 0:03:06.3]} 11. Qd2
{[%clk 0:03:12.1]} 11... Nxd4 {[%clk 0:02:40.4]} 12. Bxd4 {[%clk 0:03:14]} 12...
Nxe4 {[%clk 0:02:40.8]} 13. Qe3 {[%clk 0:03:05.7]} 13... Nxc3 {[%clk 0:02:33.3]}
14. Bxc3 {[%clk 0:03:06.2]} 14... Bxc3 {[%clk 0:02:33.8]} 15. bxc3 {[%clk
0:03:08.1]} 15... Qe5 {[%clk 0:02:21]} 16. Qxe5 {[%clk 0:03:08.9]} 16... dxe5
{[%clk 0:02:22.9]} 17. Rfe1 {[%clk 0:03:10.5]} 17... Rfc8 {[%clk 0:02:17.8]} 18.
Rxe5 {[%clk 0:03:11.6]} 18... e6 {[%clk 0:02:19.4]} 19. Re3 {[%clk 0:03:11.5]}
19... Rc5 {[%clk 0:02:19.7]} 20. Rd1 {[%clk 0:03:12.4]} 20... Be8 {[%clk
0:02:14.3]} 21. Rd4 {[%clk 0:03:02.5]} 21... b5 {[%clk 0:02:07.6]} 22. c4 {[%clk
0:02:23.4]} 22... b4 {[%clk 0:02:00.1]} 23. c3 {[%clk 0:02:24.1]} 23... bxc3
{[%clk 0:01:58.6]} 24. Rxc3 {[%clk 0:02:26]} 24... a5 {[%clk 0:02:00.3]} 25. Bd1
{[%clk 0:02:21.6]} 25... Rb8 {[%clk 0:01:59.2]} 26. Rb3 {[%clk 0:02:20.3]} 26...
Rb4 {[%clk 0:01:55.8]} 27. Be2 {[%clk 0:02:18]} 27... Kg7 {[%clk 0:01:48.4]} 28.
Rd8 {[%clk 0:02:11.4]} 28... Bc6 {[%clk 0:01:10.6]} 29. Rxb4 {[%clk 0:02:04.3]}
29... axb4 {[%clk 0:01:11.7]} 30. Rc8 {[%clk 0:02:05.9]} 30... Re5 {[%clk
0:01:11.5]} 31. Bd3 {[%clk 0:01:55.7]} 31... Re1+ {[%clk 0:00:58.3]} 32. Kh2
{[%clk 0:01:55.5]} 32... Be4 {[%clk 0:00:54.9]} 33. Bxe4 {[%clk 0:01:44.7]}
33... Rxe4 {[%clk 0:00:55.4]} 34. Kg3 {[%clk 0:01:39]} 34... Re2 {[%clk
0:00:56.4]} 35. Rb8 {[%clk 0:01:39.9]} 35... Rxa2 {[%clk 0:00:53.1]} 36. Rxb4
{[%clk 0:01:41.3]} 36... Kf6 {[%clk 0:00:50.3]} 37. Rb7 {[%clk 0:01:41]} 37...
Rc2 {[%clk 0:00:50.2]} 38. Rc7 {[%clk 0:01:41.4]} 38... g5 {[%clk 0:00:48.6]}
39. Kf3 {[%clk 0:01:41.1]} 39... h5 {[%clk 0:00:48.9]} 40. c5 {[%clk 0:01:41.7]}
40... Kg6 {[%clk 0:00:46.8]} 41. Ke3 {[%clk 0:01:42.2]} 41... f5 {[%clk
0:00:43.4]} 42. Rc8 {[%clk 0:01:30.5]} 42... h4 {[%clk 0:00:36.4]} 43. c6 {[%clk
0:01:29.6]} 43... e5 {[%clk 0:00:33.7]} 44. Kd3 {[%clk 0:01:21.5]} 44... Rc5
{[%clk 0:00:32.1]} 45. Ke2 {[%clk 0:01:13.6]} 45... Kg7 {[%clk 0:00:32.4]} 46.
Kd2 {[%clk 0:01:14.9]} 46... Rc4 {[%clk 0:00:26.3]} 47. Rc7+ {[%clk 0:01:12.5]}
47... Kg6 {[%clk 0:00:27.1]} 48. Kd3 {[%clk 0:01:13.9]} 48... Rc1 {[%clk
0:00:27.3]} 49. Rc8 {[%clk 0:01:14.3]} 49... Kg7 {[%clk 0:00:27.9]} 50. Ke2
{[%clk 0:01:13.6]} 50... Rc2+ {[%clk 0:00:28.5]} 51. Ke3 {[%clk 0:01:12.3]}
51... Rc3+ {[%clk 0:00:28.3]} 52. Ke2 {[%clk 0:01:11.8]} 52... Rc2+ {[%clk
0:00:29.2]} 53. Kd1 {[%clk 0:01:13.3]} 53... Rc5 {[%clk 0:00:28.7]} 54. c7
{[%clk 0:01:14.7]} 54... Rc6 {[%clk 0:00:28.2]} 55. Kd2 {[%clk 0:01:16]} 55...
Rc5 {[%clk 0:00:29.4]} 56. Ke2 {[%clk 0:01:17.2]} 56... Rc2+ {[%clk 0:00:30]}
57. Ke1 {[%clk 0:01:17]} 57... Rc1+ {[%clk 0:00:31.1]} 58. Kd2 {[%clk
0:01:18.2]} 58... Rc6 {[%clk 0:00:32]} 59. Ke2 {[%clk 0:01:19.3]} 59... Rc2+
{[%clk 0:00:32.9]} 60. Kd3 {[%clk 0:01:18]} 60... Rc6 {[%clk 0:00:32.9]} 61. Kd2
{[%clk 0:00:51.1]} 61... Rc5 {[%clk 0:00:33.4]} 62. Kd1 {[%clk 0:00:48.2]} 62...
Rc4 {[%clk 0:00:34.4]} 63. Ke1 {[%clk 0:00:48.6]} 63... Rc5 {[%clk 0:00:35.2]}
64. Kf1 {[%clk 0:00:49.3]} 64... Rc1+ {[%clk 0:00:36.3]} 65. Ke2 {[%clk
0:00:50.7]} 65... Rc2+ {[%clk 0:00:36.7]} 1/2-1/2

[Event "*** Titled Tuesday Blitz"]
[Site "Chess.com"]
[Date "2019.11.05"]
[Round "9"]
[White "BlueWizzard"]
[Black "riconaipe"]
[Result "0-1"]
[WhiteElo "2812"]
[BlackElo "2630"]
[TimeControl "180+2"]
[EndTime "15:08:57 PST"]
[Termination "riconaipe won by resignation"]

1. d4 {[%clk 0:03:01.9]} 1... d5 {[%clk 0:03:00.3]} 2. Bf4 {[%clk 0:03:02.7]}
2... c6 {[%clk 0:02:58.5]} 3. e3 {[%clk 0:03:03.4]} 3... Bf5 {[%clk 0:02:59.5]}
4. c4 {[%clk 0:03:04.3]} 4... e6 {[%clk 0:03:00.6]} 5. Nc3 {[%clk 0:03:05.3]}
5... Nd7 {[%clk 0:02:58.9]} 6. Qb3 {[%clk 0:03:03.9]} 6... Qb6 {[%clk
0:02:54.3]} 7. c5 {[%clk 0:03:05]} 7... Qxb3 {[%clk 0:02:55.4]} 8. axb3 {[%clk
0:03:06.9]} 8... a6 {[%clk 0:02:56.9]} 9. b4 {[%clk 0:03:08.6]} 9... Rc8 {[%clk
0:02:56.7]} 10. Nf3 {[%clk 0:03:09.2]} 10... f6 {[%clk 0:02:50.7]} 11. Bg3
{[%clk 0:03:03.1]} 11... h5 {[%clk 0:02:49.9]} 12. h4 {[%clk 0:03:00.4]} 12...
Ne7 {[%clk 0:02:48.5]} 13. Nd2 {[%clk 0:03:00.6]} 13... e5 {[%clk 0:02:44.9]}
14. Nb3 {[%clk 0:03:01.4]} 14... Be6 {[%clk 0:02:31.2]} 15. Na5 {[%clk
0:02:46.7]} 15... Rc7 {[%clk 0:02:30.8]} 16. f3 {[%clk 0:02:32.3]} 16... Nf5
{[%clk 0:02:26.9]} 17. Bf2 {[%clk 0:02:33.5]} 17... Be7 {[%clk 0:02:24.1]} 18.
Bd3 {[%clk 0:02:25.1]} 18... Kf7 {[%clk 0:02:22.9]} 19. dxe5 {[%clk 0:02:17.8]}
19... Nxe5 {[%clk 0:02:19.7]} 20. Be2 {[%clk 0:02:06.4]} 20... Rd7 {[%clk
0:02:19.6]} 21. Nb3 {[%clk 0:02:02.6]} 21... Nc4 {[%clk 0:01:54.1]} 22. e4
{[%clk 0:01:30.2]} 22... dxe4 {[%clk 0:01:51.9]} 23. fxe4 {[%clk 0:01:31.7]}
23... Nfe3 {[%clk 0:01:38.8]} 24. Bxc4 {[%clk 0:01:31.7]} 24... Nxc4 {[%clk
0:01:39.3]} 25. Nd4 {[%clk 0:01:30.4]} 25... Nxb2 {[%clk 0:01:36.2]} 26. O-O
{[%clk 0:01:29.8]} 26... Nd3 {[%clk 0:01:33.3]} 27. Be3 {[%clk 0:01:27.2]} 27...
Rhd8 {[%clk 0:01:25.6]} 28. Nxe6 {[%clk 0:01:14.4]} 28... Kxe6 {[%clk
0:01:22.9]} 29. Ne2 {[%clk 0:01:16.3]} 29... Nxb4 {[%clk 0:01:18.3]} 30. Kh1
{[%clk 0:01:08.5]} 30... Nc2 {[%clk 0:01:16]} 31. Nf4+ {[%clk 0:00:47.7]} 31...
Kf7 {[%clk 0:01:13.6]} 32. e5 {[%clk 0:00:49.6]} 32... Nxe3 {[%clk 0:00:53.7]}
33. e6+ {[%clk 0:00:50.3]} 33... Kg8 {[%clk 0:00:54]} 34. Rfe1 {[%clk
0:00:42.3]} 34... Rd1 {[%clk 0:00:53.6]} 35. Ng6 {[%clk 0:00:31]} 35... Rxe1+
{[%clk 0:00:34.3]} 36. Rxe1 {[%clk 0:00:31.6]} 36... Bxc5 {[%clk 0:00:35.6]} 37.
Kh2 {[%clk 0:00:23.8]} 37... Re8 {[%clk 0:00:36.1]} 38. Rb1 {[%clk 0:00:20.1]}
38... b5 {[%clk 0:00:35]} 39. Kh3 {[%clk 0:00:18.1]} 39... Rxe6 {[%clk
0:00:33.3]} 40. Ra1 {[%clk 0:00:19.6]} 40... f5 {[%clk 0:00:21.9]} 41. Nf4
{[%clk 0:00:20.5]} 41... Re4 {[%clk 0:00:23.2]} 42. g3 {[%clk 0:00:21.9]} 42...
Nd5 {[%clk 0:00:24.7]} 43. Nd3 {[%clk 0:00:20.4]} 43... Bd6 {[%clk 0:00:23]} 44.
Nf2 {[%clk 0:00:17.8]} 44... Re3 {[%clk 0:00:22.3]} 45. Nh1 {[%clk 0:00:19.4]}
45... Ra3 {[%clk 0:00:19.8]} 46. Re1 {[%clk 0:00:19.1]} 46... f4 {[%clk
0:00:20.1]} 47. Re6 {[%clk 0:00:17.5]} 47... Bc7 {[%clk 0:00:18.6]} 48. Rxc6
{[%clk 0:00:12.4]} 48... fxg3 {[%clk 0:00:19.8]} 49. Kg2 {[%clk 0:00:10.2]}
49... Rd3 {[%clk 0:00:20.2]} 50. Nxg3 {[%clk 0:00:06.9]} 50... Rxg3+ {[%clk
0:00:20.4]} 51. Kh1 {[%clk 0:00:08.6]} 51... Rh3+ {[%clk 0:00:20]} 52. Kg2
{[%clk 0:00:10]} 52... Rxh4 {[%clk 0:00:21]} 53. Rc1 {[%clk 0:00:08.8]} 53...
Rc4 {[%clk 0:00:21.9]} 54. Rd1 {[%clk 0:00:09.5]} 54... Ne3+ {[%clk 0:00:21.3]}
55. Kh3 {[%clk 0:00:10.4]} 55... Nxd1 {[%clk 0:00:22.1]} 56. Kg2 {[%clk
0:00:12.3]} 56... b4 {[%clk 0:00:23.4]} 57. Kh3 {[%clk 0:00:14.2]} 57... a5
{[%clk 0:00:25]} 0-1

[Event "*** Titled Tuesday Blitz"]
[Site "Chess.com"]
[Date "2019.11.05"]
[Round "9"]
[White "vova-79"]
[Black "DishonorOnYourCow"]
[Result "0-1"]
[WhiteElo "2365"]
[BlackElo "2267"]
[TimeControl "180+2"]
[EndTime "15:08:59 PST"]
[Termination "DishonorOnYourCow won by resignation"]

1. d4 {[%clk 0:03:01.9]} 1... Nf6 {[%clk 0:02:59.2]} 2. c4 {[%clk 0:03:02]} 2...
g6 {[%clk 0:03:00]} 3. Nf3 {[%clk 0:03:01.6]} 3... Bg7 {[%clk 0:03:00.8]} 4. g3
{[%clk 0:03:02.2]} 4... O-O {[%clk 0:02:55.8]} 5. Bg2 {[%clk 0:03:02.4]} 5... c6
{[%clk 0:02:56.3]} 6. Nc3 {[%clk 0:02:57.8]} 6... d5 {[%clk 0:02:57]} 7. cxd5
{[%clk 0:02:58.5]} 7... cxd5 {[%clk 0:02:57.9]} 8. Ne5 {[%clk 0:02:59.3]} 8...
Nc6 {[%clk 0:02:37.9]} 9. Nxc6 {[%clk 0:02:56.2]} 9... bxc6 {[%clk 0:02:39.8]}
10. O-O {[%clk 0:02:57.1]} 10... Bf5 {[%clk 0:02:31.1]} 11. Bf4 {[%clk
0:02:47.6]} 11... Qa5 {[%clk 0:02:12.2]} 12. Na4 {[%clk 0:02:42.8]} 12... Ne4
{[%clk 0:02:06.8]} 13. Rc1 {[%clk 0:02:41]} 13... Rac8 {[%clk 0:01:59.6]} 14.
Be3 {[%clk 0:02:33.6]} 14... e5 {[%clk 0:01:51.5]} 15. b3 {[%clk 0:02:06.2]}
15... Rfd8 {[%clk 0:01:29.2]} 16. Bxe4 {[%clk 0:02:05]} 16... dxe4 {[%clk
0:01:27.8]} 17. Bd2 {[%clk 0:01:46.9]} 17... Qc7 {[%clk 0:01:16.5]} 18. dxe5
{[%clk 0:01:45.3]} 18... Bxe5 {[%clk 0:01:12]} 19. Qe1 {[%clk 0:01:43.1]} 19...
Bh3 {[%clk 0:01:06.3]} 20. Ba5 {[%clk 0:01:40.3]} 20... Qe7 {[%clk 0:01:03.5]}
21. Bxd8 {[%clk 0:01:39.1]} 21... Rxd8 {[%clk 0:00:54.9]} 22. Rd1 {[%clk
0:01:28.1]} 22... Bxf1 {[%clk 0:00:52]} 23. Kxf1 {[%clk 0:01:25.7]} 23... Kg7
{[%clk 0:00:40.4]} 24. Rxd8 {[%clk 0:01:20.8]} 24... Qxd8 {[%clk 0:00:42.3]} 25.
Qb1 {[%clk 0:01:18.1]} 25... Qd4 {[%clk 0:00:38.8]} 26. Qc2 {[%clk 0:01:16.1]}
26... e3 {[%clk 0:00:31.8]} 27. fxe3 {[%clk 0:01:10.1]} 27... Qxe3 {[%clk
0:00:32.3]} 28. Qd3 {[%clk 0:01:01.1]} 28... Qxd3 {[%clk 0:00:16.8]} 29. exd3
{[%clk 0:01:01.2]} 29... Bd4 {[%clk 0:00:18.7]} 30. Ke2 {[%clk 0:00:59.9]} 30...
f5 {[%clk 0:00:19.7]} 31. Kd2 {[%clk 0:00:54.8]} 31... g5 {[%clk 0:00:20.3]} 32.
Nc3 {[%clk 0:00:52.5]} 32... Kf6 {[%clk 0:00:21]} 33. Ne2 {[%clk 0:00:49.5]}
33... Bf2 {[%clk 0:00:20.3]} 34. Nc3 {[%clk 0:00:44.5]} 34... Bg1 {[%clk
0:00:20.8]} 35. h3 {[%clk 0:00:43.7]} 35... Bh2 {[%clk 0:00:18.9]} 36. g4 {[%clk
0:00:43.8]} 36... f4 {[%clk 0:00:19.3]} 37. d4 {[%clk 0:00:39.2]} 37... Bg1
{[%clk 0:00:18]} 38. Kd3 {[%clk 0:00:39.4]} 38... Ke6 {[%clk 0:00:15.6]} 39. Ne4
{[%clk 0:00:38.8]} 39... h6 {[%clk 0:00:16]} 40. Nc3 {[%clk 0:00:36.8]} 40...
Be3 {[%clk 0:00:13.4]} 41. Ke4 {[%clk 0:00:36.7]} 41... Bd2 {[%clk 0:00:13]} 42.
Na4 {[%clk 0:00:35.6]} 42... Bb4 {[%clk 0:00:11.5]} 43. Nb2 {[%clk 0:00:35]}
43... Bc3 {[%clk 0:00:10.2]} 44. Nc4 {[%clk 0:00:34.6]} 44... Bb4 {[%clk
0:00:10.3]} 45. Ne5 {[%clk 0:00:33.5]} 45... c5 {[%clk 0:00:09.2]} 46. d5+
{[%clk 0:00:30.2]} 46... Kd6 {[%clk 0:00:10.3]} 47. Nc4+ {[%clk 0:00:29.8]}
47... Ke7 {[%clk 0:00:09]} 48. Kd3 {[%clk 0:00:19.6]} 48... Be1 {[%clk 0:00:07]}
49. Ke2 {[%clk 0:00:19.1]} 49... Bb4 {[%clk 0:00:07.5]} 50. Kf3 {[%clk
0:00:18.5]} 50... Bc3 {[%clk 0:00:07.8]} 51. Ke4 {[%clk 0:00:18.6]} 51... Bd4
{[%clk 0:00:08.8]} 52. Ne5 {[%clk 0:00:16.5]} 52... Bxe5 {[%clk 0:00:08.9]} 0-1

[Event "*** Titled Tuesday Blitz"]
[Site "Chess.com"]
[Date "2019.11.05"]
[Round "9"]
[White "Zq1"]
[Black "hypert"]
[Result "1-0"]
[WhiteElo "2601"]
[BlackElo "2457"]
[TimeControl "180+2"]
[EndTime "15:09:01 PST"]
[Termination "Zq1 won by resignation"]

1. d4 {[%clk 0:02:58.7]} 1... Nf6 {[%clk 0:03:00.7]} 2. c4 {[%clk 0:02:59]} 2...
e6 {[%clk 0:03:01.9]} 3. Nc3 {[%clk 0:02:59.5]} 3... Bb4 {[%clk 0:03:02.9]} 4.
e3 {[%clk 0:03:00.6]} 4... O-O {[%clk 0:03:00.5]} 5. Bd3 {[%clk 0:03:00.6]} 5...
d5 {[%clk 0:03:01.8]} 6. cxd5 {[%clk 0:03:01.1]} 6... exd5 {[%clk 0:03:02.9]} 7.
Ne2 {[%clk 0:03:02.6]} 7... Re8 {[%clk 0:03:01.4]} 8. O-O {[%clk 0:03:03]} 8...
c6 {[%clk 0:02:56.2]} 9. Bd2 {[%clk 0:02:59.3]} 9... Nbd7 {[%clk 0:02:54.5]} 10.
f3 {[%clk 0:02:53.6]} 10... Nf8 {[%clk 0:02:55.3]} 11. a3 {[%clk 0:02:48.8]}
11... Bd6 {[%clk 0:02:53.4]} 12. b4 {[%clk 0:02:49.6]} 12... Ne6 {[%clk
0:02:53.2]} 13. h3 {[%clk 0:02:45]} 13... Nh5 {[%clk 0:02:48.9]} 14. g4 {[%clk
0:02:39]} 14... Ng3 {[%clk 0:02:37]} 15. Nxg3 {[%clk 0:02:39.8]} 15... Bxg3
{[%clk 0:02:38]} 16. f4 {[%clk 0:02:39.3]} 16... h5 {[%clk 0:02:06.5]} 17. Kg2
{[%clk 0:02:36.8]} 17... h4 {[%clk 0:02:06.3]} 18. Ne2 {[%clk 0:02:33.1]} 18...
a5 {[%clk 0:02:01.5]} 19. Nxg3 {[%clk 0:02:31.5]} 19... hxg3 {[%clk 0:02:03.4]}
20. Qf3 {[%clk 0:02:27.2]} 20... Nc7 {[%clk 0:01:51.7]} 21. Qxg3 {[%clk
0:02:15.5]} 21... axb4 {[%clk 0:01:47.6]} 22. axb4 {[%clk 0:02:15.7]} 22... Bd7
{[%clk 0:01:42.2]} 23. f5 {[%clk 0:02:12]} 23... Nb5 {[%clk 0:01:43.3]} 24. Rxa8
{[%clk 0:02:02]} 24... Qxa8 {[%clk 0:01:45.2]} 25. f6 {[%clk 0:02:02.5]} 25...
Qa2 {[%clk 0:01:44.3]} 26. Rf2 {[%clk 0:02:02.6]} 26... Qb3 {[%clk 0:01:39]} 27.
Bxb5 {[%clk 0:01:58.1]} 27... cxb5 {[%clk 0:01:36.6]} 28. fxg7 {[%clk
0:01:59.1]} 28... Qd3 {[%clk 0:01:27.4]} 29. Qf4 {[%clk 0:01:48.4]} 29... Qg6
{[%clk 0:01:22]} 30. Qf6 {[%clk 0:01:39.4]} 30... Qe4+ {[%clk 0:01:07.4]} 31.
Kg3 {[%clk 0:01:37.7]} 31... Be6 {[%clk 0:00:58]} 32. Qh6 {[%clk 0:01:32.4]}
32... Qh7 {[%clk 0:00:58.6]} 33. e4 {[%clk 0:01:17.4]} 33... dxe4 {[%clk
0:00:47.1]} 34. Qxh7+ {[%clk 0:01:07.4]} 34... Kxh7 {[%clk 0:00:47.6]} 35. Bf4
{[%clk 0:01:08.6]} 35... Kxg7 {[%clk 0:00:44.3]} 36. Be5+ {[%clk 0:01:09.6]}
36... Kh7 {[%clk 0:00:39.5]} 37. Kf4 {[%clk 0:01:05.9]} 37... Bd5 {[%clk
0:00:38.2]} 38. Kg5 {[%clk 0:01:06.9]} 38... Rg8+ {[%clk 0:00:32.8]} 39. Kf6
{[%clk 0:01:02]} 39... Rg6+ {[%clk 0:00:31.7]} 40. Ke7 {[%clk 0:01:02.8]} 40...
Re6+ {[%clk 0:00:32.2]} 41. Kd7 {[%clk 0:00:59.8]} 41... Rh6 {[%clk 0:00:24.9]}
42. Rc2 {[%clk 0:00:49.2]} 42... Bc4 {[%clk 0:00:21.5]} 43. Rc3 {[%clk
0:00:47.5]} 43... Kg6 {[%clk 0:00:17.5]} 44. Bf4 {[%clk 0:00:41.3]} 44... Rh7
{[%clk 0:00:18.4]} 45. Kd6 {[%clk 0:00:39.2]} 45... f5 {[%clk 0:00:19.6]} 46. g5
{[%clk 0:00:30.1]} 46... Rh4 {[%clk 0:00:20.7]} 47. Ke5 {[%clk 0:00:30.5]} 47...
Bf1 {[%clk 0:00:19.8]} 48. Rc8 {[%clk 0:00:28.6]} 48... Rxh3 {[%clk 0:00:21.5]}
49. Rg8+ {[%clk 0:00:28.5]} 49... Kf7 {[%clk 0:00:23]} 50. Rb8 {[%clk
0:00:28.7]} 50... e3 {[%clk 0:00:24.3]} 51. Rxb7+ {[%clk 0:00:28.8]} 51... Ke8
{[%clk 0:00:25.7]} 52. Ke6 {[%clk 0:00:25.7]} 52... Bc4+ {[%clk 0:00:27.3]} 53.
d5 {[%clk 0:00:26.4]} 53... Kf8 {[%clk 0:00:21.3]} 54. Bd6+ {[%clk 0:00:23.1]}
54... Kg8 {[%clk 0:00:20.9]} 55. Be5 {[%clk 0:00:23.5]} 55... Bxd5+ {[%clk
0:00:21.3]} 56. Kxd5 {[%clk 0:00:24.4]} 56... Rh7 {[%clk 0:00:21.6]} 57. Rxh7
{[%clk 0:00:18.1]} 57... Kxh7 {[%clk 0:00:23.5]} 58. Bf4 {[%clk 0:00:19]} 58...
e2 {[%clk 0:00:24.4]} 59. Bd2 {[%clk 0:00:20]} 59... Kg6 {[%clk 0:00:25.8]} 60.
Kd4 {[%clk 0:00:21.2]} 60... f4 {[%clk 0:00:26.4]} 61. Kd3 {[%clk 0:00:21.1]}
61... Kxg5 {[%clk 0:00:27.7]} 62. Kxe2 {[%clk 0:00:21.7]} 62... Kg4 {[%clk
0:00:28.5]} 63. Kf2 {[%clk 0:00:22.5]} 63... Kf5 {[%clk 0:00:29.6]} 64. Kf3
{[%clk 0:00:23.6]} 64... Ke5 {[%clk 0:00:31.1]} 65. Bxf4+ {[%clk 0:00:24.7]}
65... Kd4 {[%clk 0:00:32.6]} 66. Bd6 {[%clk 0:00:25.9]} 66... Kd5 {[%clk
0:00:34]} 67. Bc5 {[%clk 0:00:27.1]} 67... Kc4 {[%clk 0:00:35.6]} 68. Ke4 {[%clk
0:00:28.3]} 1-0

[Event "*** Titled Tuesday Blitz"]
[Site "Chess.com"]
[Date "2019.11.05"]
[Round "9"]
[White "gemarin"]
[Black "StoreySniper"]
[Result "0-1"]
[WhiteElo "2120"]
[BlackElo "2271"]
[TimeControl "180+2"]
[EndTime "15:09:06 PST"]
[Termination "StoreySniper won on time"]

1. d4 {[%clk 0:03:01.9]} 1... Nf6 {[%clk 0:02:58.4]} 2. c4 {[%clk 0:03:02.5]}
2... e6 {[%clk 0:02:59]} 3. Nf3 {[%clk 0:02:59.2]} 3... c5 {[%clk 0:02:59.7]} 4.
d5 {[%clk 0:02:59.1]} 4... exd5 {[%clk 0:02:59.7]} 5. cxd5 {[%clk 0:02:59.5]}
5... d6 {[%clk 0:03:01.6]} 6. Nc3 {[%clk 0:02:59.8]} 6... g6 {[%clk 0:03:02.8]}
7. e4 {[%clk 0:02:59.7]} 7... Bg7 {[%clk 0:03:03.4]} 8. Be2 {[%clk 0:02:58.8]}
8... O-O {[%clk 0:03:04]} 9. h3 {[%clk 0:02:59.1]} 9... a6 {[%clk 0:03:05.1]}
10. a4 {[%clk 0:02:59]} 10... Re8 {[%clk 0:03:03.5]} 11. Nd2 {[%clk 0:02:53.4]}
11... Nbd7 {[%clk 0:03:02.2]} 12. O-O {[%clk 0:02:53.9]} 12... Rb8 {[%clk
0:02:56.3]} 13. Qc2 {[%clk 0:02:51.7]} 13... Qc7 {[%clk 0:02:36.4]} 14. Nc4
{[%clk 0:02:48.7]} 14... Ne5 {[%clk 0:02:37]} 15. Nxe5 {[%clk 0:02:48.9]} 15...
Rxe5 {[%clk 0:02:35.9]} 16. Bf4 {[%clk 0:02:48.2]} 16... Re8 {[%clk 0:02:34.7]}
17. Rfe1 {[%clk 0:02:48]} 17... Nd7 {[%clk 0:02:30.9]} 18. Bh2 {[%clk
0:02:30.5]} 18... c4 {[%clk 0:02:23.1]} 19. a5 {[%clk 0:02:24.5]} 19... b5
{[%clk 0:02:15.5]} 20. axb6 {[%clk 0:02:24.2]} 20... Rxb6 {[%clk 0:02:09.7]} 21.
Kh1 {[%clk 0:02:12.4]} 21... Ne5 {[%clk 0:02:07.2]} 22. f4 {[%clk 0:02:09]}
22... Nd3 {[%clk 0:02:08]} 23. Bxd3 {[%clk 0:02:05.2]} 23... cxd3 {[%clk
0:02:09.9]} 24. Qxd3 {[%clk 0:02:06.1]} 24... Rxb2 {[%clk 0:02:11]} 25. Na4
{[%clk 0:02:06.7]} 25... Rb4 {[%clk 0:02:04.7]} 26. e5 {[%clk 0:01:53.6]} 26...
Bd7 {[%clk 0:01:33.5]} 27. Qc3 {[%clk 0:01:42]} 27... Qxc3 {[%clk 0:01:17.1]}
28. Nxc3 {[%clk 0:01:42]} 28... Rc4 {[%clk 0:01:11.3]} 29. Ne4 {[%clk
0:01:37.3]} 29... dxe5 {[%clk 0:01:09.8]} 30. Nd6 {[%clk 0:01:37.8]} 30... Rc5
{[%clk 0:00:52.9]} 31. Nxe8 {[%clk 0:01:34.6]} 31... Bxe8 {[%clk 0:00:54.8]} 32.
Rxa6 {[%clk 0:01:32.9]} 32... Rxd5 {[%clk 0:00:54.4]} 33. Ra8 {[%clk 0:01:33.2]}
33... Kf8 {[%clk 0:00:55]} 34. fxe5 {[%clk 0:01:31.9]} 34... Ke7 {[%clk
0:00:52.6]} 35. e6 {[%clk 0:01:32.2]} 35... fxe6 {[%clk 0:00:52.9]} 36. Ra7+
{[%clk 0:01:29.3]} 36... Bd7 {[%clk 0:00:53.5]} 37. Bg3 {[%clk 0:01:25.8]} 37...
Bd4 {[%clk 0:00:48.7]} 38. Rb7 {[%clk 0:01:24.9]} 38... e5 {[%clk 0:00:46.8]}
39. Bh4+ {[%clk 0:01:15.9]} 39... Ke6 {[%clk 0:00:47.5]} 40. Rf1 {[%clk
0:01:13.1]} 40... e4 {[%clk 0:00:40.7]} 41. Re1 {[%clk 0:01:09.4]} 41... e3
{[%clk 0:00:39.8]} 42. Rb4 {[%clk 0:01:03.7]} 42... Bc5 {[%clk 0:00:36.2]} 43.
Re4+ {[%clk 0:00:59.8]} 43... Re5 {[%clk 0:00:37.4]} 44. Rxe5+ {[%clk
0:00:57.7]} 44... Kxe5 {[%clk 0:00:39.3]} 45. Rc1 {[%clk 0:00:45.7]} 45... Bd4
{[%clk 0:00:37.6]} 46. Rc7 {[%clk 0:00:44.3]} 46... Be6 {[%clk 0:00:35.6]} 47.
Rxh7 {[%clk 0:00:43.6]} 47... e2 {[%clk 0:00:32.8]} 48. Be1 {[%clk 0:00:43.2]}
48... Bc4 {[%clk 0:00:25.1]} 49. h4 {[%clk 0:00:37.1]} 49... Ke4 {[%clk
0:00:24.7]} 50. h5 {[%clk 0:00:19.5]} 50... gxh5 {[%clk 0:00:24.8]} 51. Rxh5
{[%clk 0:00:20.5]} 51... Kd3 {[%clk 0:00:18.5]} 52. Rh4 {[%clk 0:00:18.5]} 52...
Bc3 {[%clk 0:00:15.8]} 53. Rh3+ {[%clk 0:00:18]} 53... Kc2 {[%clk 0:00:13]} 0-1